bitfinex/quotes_ETHUSD_20251230
["timestamp","ask_amount","ask_price","bid_price","bid_amount"]
[1767108643975,2.3139,2979.9,2979.0,2.91122994]
[1767108644297,2.3139,2979.9,2978.8,0.23203]
[1767108644479,2.3139,2979.9,2978.8,2.55233]
[1767108644680,2.3139,2979.9,2978.9,2.3203]
[1767108644903,2.3139,2979.9,2978.9,2.3213]
[1767108646786,2.3139,2979.9,2979.0,2.4436]
[1767108646997,2.3139,2979.9,2979.1,0.03356718]
[1767108647694,2.3139,2979.9,2979.1,2.47716718]
[1767108647894,0.002,2980.0,2979.1,2.47716718]
[1767108648210,0.002,2980.0,2979.1,2.4436]
[1767108648401,0.002,2980.0,2979.3,2.4436]
[1767108649612,0.002,2980.0,2979.4,2.4436]
[1767108651230,2.4832,2980.6,2979.6,2.4436]
[1767108651819,0.002,2980.7,2979.6,2.54382718]
[1767108652542,2.4832,2980.9,2979.7,2.4436]
[1767108652543,0.872,2980.9,2979.7,2.4436]
[1767108652692,2.4852,2981.2,2979.9,2.54382718]
[1767108653018,2.4852,2981.2,2980.0,2.4436]
[1767108653190,2.4852,2981.2,2980.2,2.4436]
[1767108655421,2.4852,2981.2,2980.3,2.4436]
[1767108657415,3.3572,2981.2,2980.3,2.4436]
[1767108657614,3.3572,2981.2,2980.5,2.4436]
[1767108658534,2.4852,2981.2,2980.5,2.4436]
[1767108660420,2.4852,2981.2,2980.0,5.79920739]
[1767108660632,2.4852,2981.2,2980.2,2.4436]
[1767108663227,0.002,2981.2,2980.4,2.4525]
[1767108663400,0.002,2981.2,2980.6,2.4525]
[1767108664040,0.002,2981.9,2980.7,0.10022718]
[1767108664220,0.002,2981.9,2980.8,2.4525]
[1767108664904,0.002,2981.9,2981.0,2.4525]
[1767108665100,0.002,2981.9,2981.2,2.4525]
[1767108665420,2.2677,2981.9,2981.2,2.4525]
[1767108665930,2.2657,2982.2,2980.9,0.97922718]
[1767108666134,0.002,2982.4,2981.2,2.4525]
[1767108666336,0.002,2982.4,2981.4,2.4525]
[1767108666798,0.002,2982.4,2981.5,2.4525]
[1767108667511,0.002,2982.4,2981.4,6.70822612]
[1767108667718,3.1377,2982.8,2981.5,2.55272718]
[1767108668023,3.1377,2983.1,2981.8,2.4525]
[1767108668229,3.1377,2983.1,2981.7,0.10022718]
[1767108668230,2.2657,2983.1,2982.0,2.4525]
[1767108668422,2.2657,2983.1,2982.1,0.10022718]
[1767108668626,2.2657,2983.4,2982.2,0.10022718]
[1767108668819,3.1377,2983.4,2982.2,0.10022718]
[1767108669136,3.1377,2983.4,2982.1,3.45346373]
[1767108669323,3.1377,2983.4,2982.2,3.94382486]
[1767108669522,2.2657,2983.3,2982.2,0.59059637]
[1767108669727,2.2657,2983.3,2982.1,0.10022718]
[1767108669932,2.2657,2983.3,2982.2,3.35319497]
[1767108670521,2.2657,2983.3,2982.0,2.4525]
[1767108670834,2.2657,2983.3,2982.2,6.70643693]
[1767108671033,3.1377,2983.3,2982.3,2.4525]
[1767108671205,2.2657,2983.2,2982.4,2.69775]
[1767108673936,2.2657,2983.2,2982.5,2.4525]
[1767108674440,0.002,2983.4,2982.5,2.4525]
[1767108674628,0.002,2984.6,2982.5,2.4525]
[1767108674629,2.2657,2984.5,2983.1,0.10022718]
[1767108674836,2.2657,2984.5,2983.4,2.4525]
[1767108675138,2.2657,2984.5,2983.6,2.4525]
[1767108676345,2.34221469,2985.1,2983.8,2.448]
[1767108677941,2.3448,2985.0,2983.9,2.448]
[1767108679213,7.2024464,2985.5,2983.9,2.448]
[1767108679214,2.3448,2985.4,2983.9,2.448]
[1767108679433,0.872,2985.3,2984.0,3.35120643]
[1767108679619,3.2168,2985.3,2984.2,2.448]
[1767108680225,0.55306963,2985.5,2984.3,0.10022718]
[1767108680549,2.89786963,2985.5,2984.4,2.448]
[1767108680758,0.55306963,2985.5,2984.4,2.448]
[1767108681055,2.3468,2985.7,2984.6,2.2681]
[1767108681255,2.3448,2985.5,2984.1,2.2681]
[1767108681455,2.3448,2985.5,2984.3,2.2681]
[1767108682319,2.3448,2985.5,2983.7,2.2681]
[1767108682564,2.3448,2985.5,2984.0,3.35119911]
[1767108682729,2.3448,2985.3,2984.1,2.2681]
[1767108682925,2.3448,2985.1,2984.1,2.2681]
[1767108683345,2.3448,2985.0,2984.1,2.2681]
[1767108683738,2.3448,2985.0,2983.8,2.2681]
[1767108684336,2.3448,2985.0,2983.6,2.2681]
[1767108684957,2.3468,2985.0,2983.6,2.2681]
[1767108685142,2.3448,2984.8,2983.6,2.2681]
[1767108685945,2.3448,2984.8,2983.4,2.2681]
[1767108686271,2.3448,2984.8,2983.5,2.30161768]
[1767108688763,2.3448,2984.8,2982.9,0.10022718]
[1767108688764,2.3448,2984.3,2982.8,2.2681]
[1767108688950,6.64937677,2984.5,2982.8,2.83017584]
[1767108688951,2.3448,2984.1,2982.8,2.83017584]
[1767108689260,2.3448,2984.1,2982.8,2.2681]
[1767108689734,2.3448,2984.0,2982.5,5.62094617]
[1767108689932,2.3448,2984.0,2982.6,2.30162779]
[1767108690134,2.3448,2983.8,2982.6,2.30162779]
[1767108690334,2.57928,2983.8,2982.8,2.2681]
[1767108691460,2.3448,2984.7,2983.0,2.2681]
[1767108691764,2.3448,2984.5,2983.2,2.2681]
[1767108692947,0.002,2985.0,2983.4,2.2681]
[1767108692948,2.3448,2984.9,2983.4,2.2681]
[1767108693156,3.2158,2984.9,2983.6,2.2681]
[1767108693345,1.19278,2984.9,2983.8,2.2681]
[1767108693545,2.3448,2984.8,2983.8,2.2681]
[1767108693948,2.3448,2984.8,2983.7,0.23683272]
[1767108694149,2.3448,2984.8,2983.2,0.03352105]
[1767108694355,0.002,2985.0,2982.8,0.001]
[1767108694356,2.3448,2984.3,2983.0,2.2681]
[1767108694677,2.3448,2984.1,2983.0,2.2681]
[1767108697744,2.3448,2983.9,2982.8,0.001]
[1767108697941,2.3448,2983.7,2982.8,0.001]
[1767108698166,2.3448,2983.5,2982.8,0.001]
[1767108698472,2.3448,2983.3,2982.8,0.001]
[1767108699082,2.3448,2983.2,2982.3,2.2681]
[1767108699667,2.3448,2983.2,2982.0,2.2691]
[1767108699845,2.3448,2983.0,2982.0,2.2691]
[1767108700573,2.3448,2982.8,2982.0,2.2691]
[1767108701083,2.3448,2982.8,2981.7,2.2691]
[1767108701947,2.3448,2982.8,2981.6,0.878]
[1767108702275,2.3448,2982.8,2981.7,2.2691]
[1767108702478,2.3448,2982.6,2981.7,2.2691]
[1767108703479,0.32158,2982.7,2981.8,2.2691]
[1767108703676,2.3448,2982.9,2982.0,2.2691]
[1767108703862,2.3448,2982.7,2981.6,0.001]
[1767108704073,2.3448,2982.7,2981.7,2.2691]
[1767108705585,2.3448,2982.5,2981.7,2.2691]
[1767108706763,3.3053,2982.4,2981.7,2.2691]
[1767108706964,0.872,2982.4,2981.7,2.2691]
[1767108707175,2.4333,2982.3,2981.7,2.2691]
[1767108709194,0.872,2982.4,2981.7,2.2691]
[1767108709397,2.4333,2983.0,2981.8,2.2691]
[1767108710956,2.4333,2983.0,2981.8,2.2701]
[1767108711261,2.4333,2983.0,2981.8,0.001]
[1767108711787,2.4333,2982.7,2981.8,0.001]
[1767108712086,2.4333,2982.5,2981.8,0.001]
[1767108712287,2.76383,2982.5,2981.8,0.001]
[1767108712786,2.76383,2982.5,2980.8,2.2701]
[1767108712787,2.4333,2982.3,2980.8,2.2701]
[1767108714057,2.4333,2981.9,2980.6,0.001]
[1767108714256,2.4333,2981.7,2980.6,3.35599977]
[1767108714459,2.4333,2981.7,2980.7,2.83270998]
[1767108714460,2.76383,2981.7,2980.7,2.83270998]
[1767108715485,2.76383,2981.7,2980.6,0.001]
[1767108716388,2.76383,2981.7,2980.8,2.2701]
[1767108716588,2.4333,2982.3,2981.0,2.2701]
[1767108716769,6.31,2982.4,2981.1,2.2701]
[1767108716770,2.4333,2982.1,2981.1,2.2701]
[1767108718795,2.4333,2982.1,2981.0,3.354579]
[1767108718796,2.4333,2982.1,2981.3,2.2701]
[1767108718961,0.872,2982.2,2981.5,2.2701]
[1767108719484,3.2884,2982.2,2981.5,2.2701]
[1767108720161,2.4164,2982.2,2981.5,2.49711]
[1767108720360,2.4164,2982.2,2981.0,0.001]
[1767108720987,2.4164,2982.2,2980.6,2.2711]
[1767108721287,2.4164,2982.2,2980.6,0.001]
[1767108721495,0.872,2982.1,2980.9,2.2711]
[1767108721685,2.4164,2982.0,2980.9,2.2711]
[1767108721982,2.4164,2981.8,2980.9,2.2711]
[1767108722763,2.4164,2981.8,2980.6,2.2721]
[1767108724863,2.4164,2981.8,2980.7,2.2711]
[1767108725496,2.4164,2981.7,2980.7,2.2711]
[1767108725696,0.872,2981.6,2980.7,2.2711]
[1767108725897,2.4164,2982.2,2980.9,2.2711]
[1767108726110,3.2884,2982.2,2981.1,2.2711]
[1767108726298,2.4164,2982.9,2981.2,2.37132718]
[1767108726485,2.4164,2982.7,2981.4,2.2711]
[1767108726800,2.74524,2982.7,2981.6,2.2711]
[1767108727098,2.74524,2982.7,2981.8,2.2711]
[1767108728668,2.4164,2982.5,2981.8,2.2711]
[1767108729504,2.4164,2982.5,2981.5,2.50156424]
[1767108729672,2.4164,2982.5,2981.5,3.58443533]
[1767108729872,2.4164,2982.5,2981.6,2.9649488]
[1767108730701,2.4164,2982.5,2981.7,2.2711]
[1767108730870,3.2884,2982.5,2981.7,2.2711]
[1767108732455,6.312,2983.0,2981.8,2.2711]
[1767108732456,0.002,2983.0,2981.8,2.2711]
[1767108733099,2.4164,2982.9,2981.7,6.70754635]
[1767108733298,2.4164,2982.9,2981.9,2.2711]
[1767108733530,2.4164,2982.9,2982.1,2.2711]
[1767108734030,2.4164,2982.9,2981.8,4.18169896]
[1767108734031,2.4164,2982.9,2981.8,0.82803952]
[1767108734228,2.41475726,2982.9,2981.8,2.2711]
[1767108737137,2.41475726,2982.9,2981.6,0.879]
[1767108737507,2.41475726,2982.9,2981.7,2.2721]
[1767108737702,2.41475726,2982.9,2981.9,2.2721]
[1767108740637,2.41475726,2982.9,2981.5,2.50256424]
[1767108740813,2.2798,2982.7,2981.5,2.50256424]
[1767108741422,2.2798,2982.7,2981.5,2.2721]
[1767108742036,2.2798,2982.7,2981.1,2.2721]
[1767108742037,2.2798,2982.6,2981.1,2.2721]
[1767108742218,6.31,2982.7,2981.1,2.2721]
[1767108742219,2.2798,2982.4,2981.1,2.2721]
[1767108743548,2.2798,2982.4,2981.2,2.2721]
[1767108743721,6.31,2982.7,2981.3,2.2721]
[1767108743722,2.2798,2982.2,2981.3,2.2721]
[1767108743918,2.2798,2982.0,2981.4,2.2721]
[1767108744122,2.2798,2982.0,2981.2,0.56601009]
[1767108744439,2.2798,2982.0,2981.1,2.2721]
[1767108745222,2.2798,2982.0,2981.2,2.2721]
[1767108745425,2.2798,2982.0,2981.2,2.30564353]
[1767108745730,2.2798,2982.0,2981.0,2.2721]
[1767108746531,2.2798,2982.0,2980.7,2.2731]
[1767108746720,2.2798,2981.8,2980.8,2.2721]
[1767108747226,2.2798,2981.7,2980.9,2.2721]
[1767108749137,6.31,2982.7,2981.0,2.30564579]
[1767108749342,0.002,2982.9,2981.2,2.2721]
[1767108749343,2.2798,2982.4,2981.2,2.2721]
[1767108749642,2.2798,2982.4,2981.4,2.2721]
[1767108749841,2.2798,2982.4,2981.6,2.2721]
[1767108750046,2.2798,2982.4,2981.7,2.30563791]
[1767108750219,2.2798,2982.4,2981.7,2.2721]
[1767108750414,2.2798,2982.4,2981.7,2.49931]
[1767108751311,2.2798,2982.4,2981.7,3.58098935]
[1767108751515,2.2798,2982.4,2981.8,2.2721]
[1767108754251,6.31,2982.8,2981.8,2.2721]
[1767108754449,2.2798,2982.7,2981.8,2.2721]
[1767108754619,2.2798,2982.7,2981.8,2.85751706]
[1767108755244,2.2798,2982.7,2981.9,2.2721]
[1767108756447,2.2798,2982.7,2981.8,0.58541706]
[1767108756749,2.2798,2982.7,2981.8,0.03353678]
[1767108756953,2.2798,2982.7,2981.6,0.001]
[1767108757326,2.2798,2982.7,2981.6,2.2731]
[1767108758627,2.2798,2982.7,2981.8,2.2721]
[1767108758830,2.2798,2982.7,2981.9,2.30563566]
[1767108759027,2.2798,2982.7,2981.9,2.53619923]
[1767108759232,0.872,2982.8,2981.9,2.50266357]
[1767108759554,3.1518,2982.8,2981.9,2.50266357]
[1767108759754,2.2798,2982.8,2981.9,2.50266357]
[1767108759955,3.1518,2982.8,2981.9,2.50266357]
[1767108760251,2.2798,2982.7,2981.9,2.50266357]
[1767108760620,2.2798,2982.7,2982.0,2.2721]
[1767108762258,2.2818,2982.7,2982.0,2.2721]
[1767108763525,0.002,2982.7,2982.0,2.2721]
[1767108763729,0.002,2983.0,2982.2,2.2698]
[1767108764047,2.2798,2983.3,2982.4,2.2678]
[1767108764646,2.2798,2984.1,2982.4,2.2678]
[1767108764838,2.2798,2983.9,2982.6,2.2678]
[1767108765944,2.2798,2983.9,2982.7,2.2678]
[1767108767358,2.3202,2984.1,2982.7,2.2678]
[1767108767658,2.3202,2984.1,2982.9,2.2678]
[1767108768963,2.3202,2984.1,2982.6,2.2678]
[1767108770357,0.002,2983.9,2982.6,2.2678]
[1767108770558,2.3202,2983.8,2982.6,2.2678]
[1767108770755,2.3202,2983.6,2982.6,2.2678]
[1767108770938,2.3202,2983.4,2982.3,2.49813334]
[1767108771566,2.3202,2983.4,2981.9,3.58409875]
[1767108771567,2.3202,2983.4,2982.0,2.2678]
[1767108772069,2.3202,2983.4,2981.7,2.2678]
[1767108772843,2.3202,2983.4,2981.6,0.001]
[1767108772844,2.42042718,2983.4,2981.6,0.001]
[1767108773272,0.872,2983.3,2981.6,2.2688]
[1767108773451,2.3202,2983.2,2981.6,0.001]
[1767108773654,2.3202,2983.0,2981.6,0.001]
[1767108774579,2.42042718,2983.0,2981.0,2.30334579]
[1767108774757,2.42042718,2983.0,2980.7,2.2708]
[1767108774758,2.3202,2982.7,2980.7,2.2708]
[1767108774940,2.3202,2982.5,2980.7,2.2708]
[1767108775147,2.3202,2982.3,2980.8,2.49698]
[1767108777384,2.3202,2982.3,2980.8,0.22718]
[1767108777677,2.3202,2982.3,2980.7,0.001]
[1767108778477,2.42042718,2982.1,2980.7,0.001]
[1767108778783,2.3202,2981.7,2980.4,2.2728]
[1767108778969,2.3202,2981.7,2980.5,0.03355141]
[1767108779349,2.3202,2981.5,2980.6,2.2718]
[1767108779590,2.3202,2981.3,2980.6,2.2718]
[1767108779793,0.872,2981.2,2980.6,2.2718]
[1767108779995,3.1922,2981.2,2980.6,2.2718]
[1767108781079,2.3202,2981.2,2980.6,2.2718]
[1767108781279,0.872,2981.2,2980.6,2.2718]
[1767108781481,2.3202,2981.5,2980.7,2.30534916]
[1767108781647,2.3202,2981.5,2980.7,2.2718]
[1767108781848,2.3202,2981.5,2980.6,0.23063525]
[1767108782151,2.3202,2981.5,2980.5,2.2718]
[1767108782366,2.3202,2981.5,2980.6,2.2718]
[1767108783755,2.3202,2981.5,2980.7,0.03354916]
[1767108783954,2.3202,2981.5,2980.7,2.30534916]
[1767108784281,3.1922,2981.5,2980.7,2.2718]
[1767108784462,2.2592,2981.4,2980.7,2.2718]
[1767108784649,2.2592,2981.4,2980.7,2.49908]
[1767108785074,2.2592,2981.4,2980.7,0.22728]
[1767108785283,2.2592,2981.4,2980.5,0.001]
[1767108785589,2.2592,2981.3,2979.9,0.001]
[1767108786647,2.2592,2981.3,2979.9,2.2748]
[1767108788568,2.2592,2981.3,2979.8,0.001]
[1767108788754,2.2592,2981.3,2979.6,2.2738]
[1767108788755,2.2592,2980.9,2979.6,2.2758]
[1767108788951,2.2592,2980.7,2979.7,0.03356042]
[1767108789156,2.2592,2980.7,2979.8,2.2758]
[1767108789359,0.872,2981.0,2980.0,2.2758]
[1767108789667,0.872,2981.0,2980.2,2.2758]
[1767108789987,0.872,2981.0,2980.2,2.50673559]
[1767108790187,2.2592,2981.1,2980.2,2.50673559]
[1767108790390,0.872,2981.2,2980.4,2.2758]
[1767108790699,2.2592,2981.2,2980.6,2.2758]
[1767108791067,0.873,2981.4,2980.7,2.30934916]
[1767108791272,0.873,2981.4,2980.7,2.2758]
[1767108791273,3.1322,2981.4,2980.7,2.2758]
[1767108791485,2.2592,2981.3,2980.7,2.2758]
[1767108791690,2.2592,2981.3,2980.7,2.34747551]
[1767108792802,2.2592,2981.3,2980.7,1.78438167]
[1767108793261,2.2592,2981.3,2980.4,1.7843]
[1767108793458,2.2592,2981.3,2980.5,1.7843]
[1767108793690,0.873,2981.4,2980.5,1.7843]
[1767108793881,0.873,2981.4,2980.2,0.23093559]
[1767108793882,2.2592,2982.3,2980.9,1.7843]
[1767108794085,2.2592,2982.3,2981.1,1.7843]
[1767108794285,2.2592,2982.3,2981.3,1.7843]
[1767108794658,2.2592,2982.3,2981.2,5.13861808]
[1767108794861,2.2592,2982.3,2981.3,1.7843]
[1767108795090,2.2592,2982.3,2981.5,1.7843]
[1767108795961,2.2592,2982.3,2981.4,0.51386181]
[1767108796291,2.2592,2982.3,2981.2,2.6633]
[1767108796465,2.2592,2982.3,2981.2,1.7843]
[1767108797186,2.2592,2982.3,2980.9,1.7843]
[1767108797378,2.2592,2982.3,2981.0,1.7843]
[1767108798088,2.2592,2982.3,2980.8,0.879]
[1767108798273,0.873,2982.6,2980.7,1.7843]
[1767108798274,2.4213,2982.1,2980.7,1.7843]
[1767108798476,2.4213,2981.9,2980.7,5.13921358]
[1767108798790,2.4213,2981.9,2980.7,1.7843]
[1767108799577,2.4213,2981.9,2980.6,3.35498144]
[1767108799891,2.4213,2981.9,2980.7,3.35490383]
[1767108800108,0.22592,2982.2,2980.8,1.32642971]
[1767108800109,2.75073,2981.8,2980.8,1.32642971]
[1767108800790,2.75073,2981.8,2980.8,3.38828926]
[1767108801004,2.75073,2981.8,2980.9,1.2929]
[1767108803864,2.75073,2981.8,2980.8,3.35479203]
[1767108804202,2.75073,2981.8,2980.7,3.35483833]
[1767108804371,2.4213,2981.6,2980.8,1.2929]
[1767108805299,2.4213,2981.6,2980.8,3.35479459]
[1767108805611,2.4213,2981.6,2980.9,1.2929]
[1767108806701,2.4213,2982.2,2980.9,1.2929]
[1767108806880,2.4213,2982.2,2981.1,1.2929]
[1767108806881,0.873,2982.1,2981.1,1.2929]
[1767108807070,2.4213,2982.0,2981.1,1.2929]
[1767108807529,2.4213,2982.0,2981.1,1.32644466]
[1767108807813,0.002,2981.8,2981.1,1.2929]
[1767108808011,2.4233,2981.8,2981.1,1.2929]
[1767108808197,0.24233,2981.7,2981.2,0.03354353]
[1767108808397,0.24233,2981.7,2981.2,1.32644353]
[1767108808719,2.4233,2981.8,2981.2,1.32644353]
[1767108809102,2.66363,2982.1,2981.2,1.32644353]
[1767108809405,2.66363,2982.1,2981.3,1.2909]
[1767108810507,2.66363,2982.1,2980.8,1.2909]
[1767108810711,2.4213,2981.9,2980.8,1.2909]
[1767108810915,2.4213,2981.7,2980.8,1.2909]
[1767108812205,2.4213,2981.7,2980.9,1.32444691]
[1767108812401,2.4213,2981.7,2980.9,1.2909]
[1767108813102,0.32943,2981.8,2981.1,1.2909]
[1767108813302,2.75073,2981.8,2981.1,1.2909]
[1767108813501,0.275073,2981.7,2981.1,1.2909]
[1767108814989,0.275073,2981.7,2980.9,1.2909]
[1767108814990,2.696373,2981.7,2980.9,1.2909]
[1767108817213,2.4213,2981.5,2980.8,0.001]
[1767108819391,2.4213,2981.3,2980.0,1.2919]
[1767108819825,2.4213,2981.3,2979.8,1.2929]
[1767108820792,2.4213,2981.3,2979.9,1.2929]
[1767108820999,2.4213,2981.1,2979.9,1.2929]
[1767108821322,2.4213,2980.9,2979.9,1.2929]
[1767108822025,2.4213,2980.9,2980.1,1.2929]
[1767108822421,3.2943,2981.1,2980.1,1.2929]
[1767108822721,2.4213,2981.0,2980.1,1.2929]
[1767108822890,2.4213,2981.0,2980.3,1.2929]
[1767108823093,2.4213,2981.0,2979.9,1.2929]
[1767108823822,2.4213,2981.0,2980.0,1.2929]
[1767108824634,6.64947506,2981.8,2980.1,1.2929]
[1767108824635,2.4213,2981.7,2980.1,1.2929]
[1767108824802,2.4213,2981.5,2980.3,1.2929]
[1767108825009,2.4213,2981.5,2980.4,1.2929]
[1767108826000,2.4213,2981.5,2980.5,1.2929]
[1767108828027,2.4213,2981.5,2980.5,4.6480087]
[1767108828331,0.873,2981.7,2980.6,1.2929]
[1767108828503,0.873,2981.7,2980.8,1.2929]
[1767108829095,3.3226,2981.7,2980.8,1.2929]
[1767108830813,2.4496,2981.6,2980.8,1.2929]
[1767108830997,2.4496,2981.6,2980.3,1.2929]
[1767108831202,2.4496,2981.6,2980.4,4.64808162]
[1767108831414,0.873,2981.7,2980.8,0.001]
[1767108831415,2.4496,2981.4,2980.8,0.001]
[1767108832014,2.4496,2981.4,2980.4,1.2929]
[1767108832213,2.4496,2981.4,2980.4,4.64913307]
[1767108832435,2.4496,2981.4,2980.5,4.64902396]
[1767108832623,2.4496,2981.4,2980.6,1.2939]
[1767108833528,2.4496,2981.4,2980.4,3.35523042]
[1767108833529,2.4496,2981.4,2980.4,1.2939]
[1767108833907,2.4496,2981.4,2980.6,1.2939]
[1767108834424,2.4516,2981.7,2980.7,1.2939]
[1767108835019,2.4516,2981.7,2980.9,1.2939]
[1767108835216,0.002,2981.8,2980.9,1.2919]
[1767108835409,0.002,2981.8,2980.8,6.70960814]
[1767108835410,0.002,2981.8,2981.1,1.2919]
[1767108835900,2.4516,2981.8,2981.1,1.2919]
[1767108836228,2.4516,2981.8,2980.9,1.2919]
[1767108837026,2.4516,2981.8,2981.0,1.2919]
[1767108838338,2.4516,2981.8,2980.8,1.2919]
[1767108838507,2.4496,2981.6,2980.8,1.2919]
[1767108838709,0.002,2981.8,2981.0,1.2919]
[1767108839434,2.3241,2981.8,2981.1,1.2919]
[1767108839734,0.002,2981.8,2981.1,1.2919]
[1767108840444,2.3241,2981.8,2981.1,1.2919]
[1767108840642,2.55651,2981.8,2981.1,1.2919]
[1767108841436,2.55651,2981.8,2980.8,1.2929]
[1767108841616,2.3221,2981.6,2980.8,1.2929]
[1767108842236,2.3221,2981.6,2980.8,0.001]
[1767108842419,2.3221,2981.6,2980.8,1.2929]
[1767108842741,2.3221,2981.6,2981.0,1.2919]
[1767108842947,2.3221,2981.6,2981.1,1.2919]
[1767108843112,0.875,2981.8,2981.0,1.2919]
[1767108843313,0.10022718,2981.0,2979.6,0.001]
[1767108843619,0.10022718,2979.0,2978.6,1.2929]
[1767108843810,0.10022718,2978.9,2978.6,1.2929]
[1767108844006,2.3221,2979.1,2978.6,0.001]
[1767108844207,2.42232718,2979.0,2978.6,0.001]
[1767108845032,0.32953272,2979.1,2978.6,0.001]
[1767108845033,0.10022718,2979.1,2978.6,0.001]
[1767108845234,2.42232718,2979.1,2978.6,0.001]
[1767108846025,2.3221,2978.8,2978.4,0.001]
[1767108846329,0.873,2979.2,2978.4,0.4219]
[1767108846536,2.3221,2979.3,2978.4,0.4219]
[1767108846724,0.873,2979.5,2978.4,0.4219]
[1767108846925,0.10022718,2979.5,2978.4,0.4219]
[1767108847330,3.1951,2979.6,2978.5,0.4209]
[1767108847535,2.3221,2979.6,2978.7,0.4209]
[1767108849262,2.42232718,2979.9,2978.7,0.4209]
[1767108849755,2.42232718,2980.3,2978.8,0.4209]
[1767108849963,2.42232718,2980.3,2979.0,0.4209]
[1767108849964,2.42232718,2980.1,2979.0,0.4209]
[1767108850258,2.3221,2980.1,2979.0,0.4209]
[1767108851949,2.3221,2980.1,2978.9,0.879]
[1767108851950,2.2871,2980.1,2978.9,4.23593198]
[1767108852156,2.2871,2980.1,2979.1,0.4559]
[1767108852437,2.3221,2980.7,2979.1,0.4559]
[1767108852663,2.42232718,2980.6,2979.1,0.4559]
[1767108852965,2.3221,2980.6,2979.1,0.4559]
[1767108853163,2.42232718,2980.6,2979.3,0.4559]
[1767108853368,2.3221,2980.6,2979.3,0.4559]
[1767108853733,2.42232718,2980.6,2979.3,0.4559]
[1767108853940,2.3221,2980.3,2979.3,0.4559]
[1767108855859,2.3221,2980.1,2979.0,0.4569]
[1767108856066,2.353,2979.9,2979.0,0.4569]
[1767108860081,2.353,2980.3,2979.1,0.4559]
[1767108860236,2.353,2980.3,2979.3,0.4559]
[1767108860554,2.353,2980.3,2979.5,0.4559]
[1767108860755,2.68562272,2980.3,2979.5,0.4559]
[1767108861545,0.873,2980.8,2979.7,0.4559]
[1767108861745,2.353,2980.7,2979.7,0.4559]
[1767108862239,2.353,2980.7,2979.4,0.91071755]
[1767108862434,2.353,2980.7,2979.7,0.4539]
[1767108862631,2.353,2980.7,2979.9,0.4539]
[1767108865491,2.353,2980.7,2979.9,0.48724407]
[1767108865773,2.353,2980.7,2979.9,0.4539]
[1767108867556,2.353,2981.2,2979.9,0.4539]
[1767108867753,2.353,2981.1,2979.9,0.4539]
[1767108867961,2.6756,2981.0,2980.1,0.4539]
[1767108868770,2.6756,2981.0,2979.5,0.4539]
[1767108868980,2.6756,2981.0,2979.9,0.4539]
[1767108877083,2.353,2980.8,2979.6,0.4539]
[1767108877586,2.353,2980.8,2979.7,0.4539]
[1767108877788,2.353,2980.6,2979.8,0.4539]
[1767108881398,2.353,2980.6,2979.9,0.4539]
[1767108882902,2.353,2980.6,2979.5,0.4539]
[1767108883202,0.3226,2980.7,2979.0,3.35778281]
[1767108883203,2.353,2980.0,2979.0,0.001]
[1767108883402,2.353,2979.8,2979.0,0.001]
[1767108885400,2.353,2979.6,2978.5,0.4559]
[1767108886805,2.353,2979.6,2978.5,0.001]
[1767108889713,0.97322718,2979.7,2978.4,0.4569]
[1767108889714,2.4894,2979.4,2978.4,0.001]
[1767108889919,2.4894,2979.2,2978.3,0.001]
[1767108890129,2.4894,2979.0,2978.3,0.001]
[1767108890417,2.4894,2979.0,2978.3,0.4589]
[1767108890593,2.4894,2979.0,2978.3,0.001]
[1767108890914,2.4894,2979.0,2977.9,0.001]
[1767108891095,2.4894,2978.8,2977.9,0.4609]
[1767108892614,2.4894,2978.8,2978.0,0.4599]
[1767108893610,2.4894,2978.8,2978.3,0.001]
[1767108894028,2.4894,2978.8,2977.9,0.001]
[1767108895347,2.4894,2978.8,2977.5,0.001]
[1767108895650,2.4894,2978.6,2977.5,0.001]
[1767108895821,2.4894,2978.4,2977.2,0.4619]
[1767108896022,2.4894,2978.4,2977.0,0.4629]
[1767108896530,2.4894,2978.2,2976.7,0.881]
[1767108896745,2.4894,2978.2,2976.7,1.3449]
[1767108897044,2.4894,2978.2,2976.7,4.70429543]
[1767108897247,2.4894,2978.2,2976.9,0.4639]
[1767108897742,2.58962718,2978.2,2976.9,0.4639]
[1767108897930,2.58962718,2978.2,2976.7,0.881]
[1767108898134,2.58962718,2978.2,2976.7,4.70432467]
[1767108898448,2.58962718,2978.2,2977.1,0.4649]
[1767108898449,2.4894,2978.1,2977.1,0.4649]
[1767108898632,1.13296272,2978.1,2977.3,0.4639]
[1767108898832,2.4894,2978.0,2977.3,0.4639]
[1767108899239,2.4894,2978.0,2977.1,0.38340349]
[1767108899616,2.4894,2978.0,2977.1,0.001]
[1767108900039,2.4894,2978.0,2976.7,1.3449]
[1767108900248,2.4894,2978.0,2976.7,0.001]
[1767108900446,2.4894,2978.0,2976.8,0.4649]
[1767108900647,2.4894,2978.0,2977.0,0.4649]
[1767108901053,2.4894,2978.0,2976.9,0.88]
[1767108901351,2.3705,2977.8,2976.7,7.18470789]
[1767108901576,2.3705,2978.1,2977.0,0.4659]
[1767108901782,2.3705,2978.1,2977.4,0.4649]
[1767108901948,2.3705,2978.6,2977.6,0.4649]
[1767108902149,2.3705,2978.4,2977.6,0.4649]
[1767108903159,2.3705,2978.4,2977.7,0.4649]
[1767108905510,0.10022718,2979.3,2977.7,0.4649]